[Event "121st Swiss Championship 2022"]
[Site "Samnaun-Compatsch"]
[Date "2022.07.05"]
[Round "2.11"]
[White "Gemelli, Romain"]
[Black "Sedina, Yelena"]
[Result "0-1"]
[ECO "D10"]
[WhiteElo "2045"]
[BlackElo "2215"]
[Annotator "TA"]
[PlyCount "136"]
[EventDate "2022.06.28"]
[EventType "swiss"]
[EventCountry "SUI"]
[SourceTitle "playchess.com"]
[Source "ChessBase"]
[SourceQuality "1"]
[TimeControl "40/5400+30:1800+30"]

{[%evp 9,136,16,20,16,20,0,0,0,24,22,9,25,25,25,0,0,0,0,0,0,0,0,0,8,7,0,12,-70,97,74,116,125,112,111,138,121,247,166,192,188,166,131,114,149,198,197,194,204,241,232,213,215,231,185,275,275,283,195,156,107,112,93,106,121,182,173,182,142,268,268,426,431,416,240,335,341,305,240,461,413,432,416,1829,1577,1155,0,0,0,0,0,0,0,0,0,0,0,0,0,0,0,0,0,0,0,0,-27994,-27994,-27995,-27995,-27993,-27993,-27994,-27994,-27995,-27995,-27996,-27996,-27997,-27997,-27999,-27998,-27999,-27998,-27999,-27999,-27993,-27993,-27998,-27998]} 1. d4 {[%emt 0:00:07]} d5 {[%emt 0:00:26]} 2. c4 {[%emt 0:00:08]} c6 {[%emt 0:00:16]} 3. Nc3 {[%emt 0:00:07]} dxc4 {[%emt 0:04:06]} 4. e3 {[%emt 0:00:12]} b5 {[%emt 0:00:47]} 5. a4 {[%emt 0:00:07]} b4 {[%emt 0:00:15]} 6. Ne4 {[%emt 0:00:06][%mdl 1024] White has compensation. D10: Slav Defence: 3 cxd5 (without early Nf3) and 3 Nc3.} Qd5 {[%emt 0:00:52]} 7. Ng3 {[%emt 0:00:07]} Nf6 {[%emt 0:04:05] Inhibits e4.} 8. Be2 {[%emt 0:00:07] The position is equal.} Ba6 {[%emt 0:17:50] was the old line (8...e5).} (8... Qxg2 $2 9. Bf3 Bg4 10. Bxg2 $18) 9. e4 {[%emt 0:00:41]} Nxe4 {[%emt 0:10:52]} 10. Bf3 {[%emt 0:00:08]} f5 {[%emt 0:00:04]} 11. N1e2 $1 {[%emt 0:00:08] White wants to play 0-0.} g6 {[%emt 0:13:36]} 12. Nf4 {[%emt 0:00:16]} Qf7 {[%emt 0:00:40]} 13. Nxe4 {[%emt 0:00:25]} fxe4 {[%emt 0:00:08]} 14. Bg4 {[%emt 0:00:14]} (14. Bxe4 Bg7 $15) 14... h5 $1 {[%emt 0:06:48]} 15. Be6 {[%emt 0:00:10]} Qf6 {[%emt 0:03:09]} 16. Bh3 $1 {[%emt 0:00:11] And now Ne6 would win.} g5 {[%emt 0:19:45]} 17. Nxh5 {[%emt 0:00:49]} Qg6 {[%emt 0:00:18] [#]} 18. Ng3 $146 {[%emt 0:00:59] [#]} (18. Bg4 $11) ({Predecessor:} 18. Bg4 Nd7 19. Ng3 O-O-O 20. Qd2 c5 21. dxc5 e6 22. Qxb4 Nxc5 23. Qa5 Nd3+ 24. Kf1 {0-1 (54) Lloyd,G (2262)-Egelstaff,R (2270) ICCF email 2017}) 18... e6 $2 {[%emt 0:01:54]} (18... Rxh3 $1 $15 {stays ahead.} 19. gxh3 Nd7) 19. Qg4 {[%emt 0:14:14]} Be7 {[%emt 0:07:51]} 20. Qxe6 {[%emt 0:02:11]} (20. Nxe4 $2 Rh4 21. Nd6+ Bxd6 $19) 20... Qxe6 {[%emt 0:03:18]} 21. Bxe6 {[%emt 0:00:06] Strongly threatening 0-0.} Nd7 {[%emt 0:00:34]} 22. Nxe4 {[%emt 0:06:04]} O-O-O {[%emt 0:02:19]} (22... c3 $16) 23. O-O {[%emt 0:06:02]} (23. Nxg5 Rhe8 24. O-O Bxg5 25. Bxd7+ (25. Bxg5 Rxe6 26. Bxd8 Kxd8 $15) 25... Rxd7 26. Bxg5 c3 $11) 23... c3 {[%emt 0:00:53]} 24. Re1 {[%emt 0:00:37]} ({Stronger than} 24. bxc3 Bxf1 25. Kxf1 Rxh2 $11) 24... Rh6 {[%emt 0:00:56]} 25. Ng3 {[%emt 0:05:40]} cxb2 {[%emt 0:00:33]} 26. Bxb2 {[%emt 0:00:11]} Kc7 {[%emt 0:00:40]} (26... Bd6 $16 {was necessary.} 27. h3 Re8) 27. Nf5 $18 {[%emt 0:01:27][%csl LRe7,LRh6]} Rh7 28. d5 {[%emt 0:02:00]} cxd5 {[%emt 0:00:29]} 29. Rac1+ {[%emt 0:02:43]} Kb8 {[%emt 0:00:01]} 30. Bxd5 {[%emt 0:01:01]} Bf6 {[%emt 0:00:12]} 31. Nd4 {[%emt 0:01:12] aiming for Nc6+.} (31. Bd4 $6 Bd3) 31... Bxd4 {[%emt 0:01:43]} (31... Bb7 $142) 32. Bxd4 {[%emt 0:00:02]} Bb7 {[%emt 0:00:22]} 33. Bxb7 {[%emt 0:01:27]} Kxb7 {[%emt 0:00:01]} 34. a5 {[%emt 0:00:37]} ({Better is} 34. Be3) 34... Nb8 $16 {[%emt 0:00:56]} 35. Bf6 {[%emt 0:00:55]} Rd5 {[%emt 0:00:06]} 36. Re4 $36 {[%emt 0:09:11][%mdl 2048] White is on the roll.} Na6 {[%emt 0:00:17]} (36... Rb5 $16) 37. f4 $1 $18 {[%emt 0:01:00]} gxf4 {[%emt 0:01:10]} 38. Rxf4 {[%emt 0:00:01]} Rxa5 {[%emt 0:00:35]} (38... b3 $16) 39. g4 $1 {[%emt 0:00:34][%cal Bg2g4,Bg4g5,Bg5f6][%mdl 32]} Ra2 {[%emt 0:00:34]} (39... Rc7 {keeps fighting.} 40. Rxc7+ Nxc7) 40. h4 $1 {[%emt 0:00:47]} Rd7 {[%emt 0:00:29]} 41. Rf2 {[%emt 0:30:07]} (41. g5 $142) 41... Ra3 {[%emt 0:30:36]} 42. g5 {[%emt 0:02:31]} Nc7 {[%emt 0:00:23]} 43. h5 {[%emt 0:00:42][%cal Bh4h5,Bh5h6][%mdl 32] g6 is the strong threat.} Ne8 $2 {[%emt 0:00:38]} (43... Rh3) 44. h6 {[%emt 0:03:41]} Nxf6 {[%emt 0:00:23]} 45. gxf6 {[%emt 0:00:02][%mdl 4096] Endgame KRR-KRR} Rf7 {[%emt 0:00:33]} (45... Rg3+ $142 46. Kf1 (46. Kh2 Rg6 $16) 46... Rf7) 46. Re1 {[%emt 0:00:02]} Rg3+ {[%emt 0:00:20] [#]} 47. Kh2 $2 {[%emt 0:00:18]} (47. Kf1 $1 $18 {Black must now prevent Re7+.} Rc3 48. h7 Rxh7 49. f7 Rh1+ 50. Kg2) 47... Rg6 $1 $11 {[%emt 0:00:09][%csl LRf6,LRh6]} 48. Re6 {[%emt 0:02:53]} Rxh6+ {[%emt 0:00:04]} 49. Kg1 {[%emt 0:00:02]} Rg6+ {[%emt 0:01:25]} 50. Kf1 {[%emt 0:00:01] Hoping for Re7+.} Kc8 {[%emt 0:00:33]} 51. Ke1 {[%emt 0:02:01]} a5 {[%emt 0:00:27]} 52. Rb6 {[%emt 0:01:01] Threatens to win with Rc2+.} Kc7 {[%emt 0:00:24]} 53. Rb5 {[%emt 0:01:51]} Rgxf6 $2 {[%emt 0:00:09][%mdl 8192]} ({But not} 53... Rfxf6 $6 54. Rxf6 Rxf6 55. Rxa5 $17) (53... Kc6 $11 54. Rxa5 b3 55. Ra6+ Kd5) 54. Rxf6 {[%emt 0:00:08]} Rxf6 {[%emt 0:00:01]} 55. Rxa5 {[%emt 0:00:22] KR-KR} Kb6 {[%emt 0:00:19]} 56. Rd5 {[%emt 0:00:07]} Kc6 $2 {[%emt 0:00:22][%mdl 8192]} (56... b3 $11 57. Rd3 Rh6) 57. Rd8 $2 {[%emt 0:01:08][%mdl 8192]} (57. Ra5 $11 Kb6 58. Rd5) 57... Kb5 {[%emt 0:01:32] Black mates.} 58. Kd2 {[%emt 0:00:32] [#]} Rc6 $1 {[%emt 0:00:09]} 59. Ra8 {[%emt 0:00:38]} b3 {[%emt 0:00:13]} 60. Rb8+ {[%emt 0:03:23]} Ka4 {[%emt 0:00:01]} 61. Ra8+ {[%emt 0:01:42]} Kb4 {[%emt 0:00:05]} 62. Rb8+ {[%emt 0:01:04]} Ka3 {[%emt 0:00:05]} 63. Ra8+ {[%emt 0:01:00]} Kb2 {[%emt 0:00:04]} 64. Kd1 {[%emt 0:00:08]} Rd6+ {[%emt 0:00:29]} 65. Ke2 {[%emt 0:00:01]} Kc2 {[%emt 0:00:09]} 66. Rc8+ {[%emt 0:00:05]} Kb1 {[%emt 0:00:05]} 67. Rb8 {[%emt 0:00:03]} b2 {[%emt 0:00:05]} 68. Rb7 {[%emt 0:00:15]} Ra6 {[%emt 0:00:26] Never resign too early!  Weighted Error Value: White=0.36/Black=0.26 (precise)} 0-1

[Event "121st Swiss Championship 2022"]
[Site "Samnaun-Compatsch"]
[Date "2022.07.06"]
[Round "3.1"]
[White "Rohrer, Christophe"]
[Black "Baenziger, Fabian"]
[Result "1/2-1/2"]
[ECO "C88"]
[WhiteElo "2246"]
[BlackElo "2451"]
[Annotator "TA"]
[PlyCount "59"]
[EventDate "2022.06.28"]
[EventType "swiss"]
[EventCountry "SUI"]
[SourceTitle "playchess.com"]
[Source "ChessBase"]
[SourceQuality "1"]
[TimeControl "40/5400+30:1800+30"]

{[%evp 22,59,2,10,22,14,14,8,6,12,16,12,0,-44,-20,-18,-37,-229,-222,-211,-214,-301,-219,-217,-212,-252,-251,-269,-180,-416,-105,-122,-104,-112,0,0,0,-116,0,-73]} 1. e4 {[%emt 0:00:04]} e5 {[%emt 0:00:27]} 2. Nf3 {[%emt 0:00:06]} Nc6 {[%emt 0:00:05]} 3. Bb5 {[%emt 0:00:11][%cal Bf1b5,Bb5a4,Ba4b3,Bb3a2][%mdl 32]} a6 {[%emt 0:00:06]} 4. Ba4 {[%emt 0:00:13]} Nf6 {[%emt 0:00:25]} 5. O-O {[%emt 0:00:15]} Be7 {[%emt 0:00:19]} 6. Re1 {[%emt 0:00:15]} b5 {[%emt 0:00:05]} 7. Bb3 {[%emt 0:00:06]} O-O {[%emt 0:00:05]} 8. a4 {[%emt 0:00:18]} Bb7 {[%emt 0:00:35]} 9. d3 {[%emt 0:01:04]} d6 {[%emt 0:00:28]} 10. Bd2 {[%emt 0:00:21]} Qd7 {[%emt 0:00:44]} 11. Nc3 {[%emt 0:05:21][%cal Bb1c3,Bc3e2,Be2g3,Bg3f5][%mdl 32]} Na5 {[%emt 0:02:22]} 12. Ba2 {[%emt 0:00:21]} b4 {[%emt 0:00:04] C88: Closed Ruy Lopez: Anti-Marshall Systems.} 13. Ne2 {[%emt 0:00:35]} c5 {[%emt 0:00:05]} 14. Ng3 {[%emt 0:03:02]} Rab8 {[%emt 0:01:41]} 15. Nf5 {[%emt 0:06:27]} Bc8 {[%emt 0:01:09]} 16. N3h4 {[%emt 0:06:47]} Bd8 {[%emt 0:07:38] [#]} 17. Qf3 $146 {[%emt 0:04:32]} ({Predecessor:} 17. Re3 g6 18. Rh3 c4 19. Bh6 b3 20. cxb3 cxb3 21. Bb1 d5 22. Qc1 Qc6 23. Qd2 {0-1 (66) Motylev,A (2642)-Ponkratov,P (2650) Moscow 2021}) 17... g6 {[%emt 0:15:32]} 18. Bh6 {[%emt 0:21:08]} Re8 {[%emt 0:02:56]} 19. g4 $2 {[%emt 0:09:54]} b3 $19 {[%emt 0:07:30]} (19... gxf5 20. Nxf5 b3 21. cxb3) 20. cxb3 {[%emt 0:06:41]} Nxb3 {[%emt 0:05:04]} (20... gxf5 21. Nxf5 Re6 22. b4 Rxb4 23. Bd2) 21. Rad1 {[%emt 0:01:22]} (21. Rab1 $142) 21... Nd4 {[%emt 0:05:26]} ({Not} 21... Qxa4 22. Bxb3 Qxb3 23. Qg3 $17) 22. Nxd4 {[%emt 0:02:11]} cxd4 {[%emt 0:01:49]} 23. Nf5 {[%emt 0:03:44][%cal Of3g3]} Rxb2 {[%emt 0:09:30]} 24. Ra1 {[%emt 0:02:00]} d5 {[%emt 0:06:17]} 25. Ng7 {[%emt 0:02:35]} (25. Bc1 dxe4 26. dxe4 gxf5 27. Bxb2 fxe4 28. Qg3) 25... Rf8 $2 {[%emt 0:12:59]} (25... Nxg4 $19 {and Black stays clearly on top.} 26. Nxe8 Qxe8) 26. h3 $17 {[%emt 0:02:25][%cal Re4d5]} Bb7 {[%emt 0:00:03]} 27. Nf5 {[%emt 0:02:48] [#]} Re8 {[%emt 0:00:22]} ({Don't play} 27... gxf5 28. gxf5 Kh8 29. Bxf8 dxe4 30. dxe4 $16) ({Black should play} 27... Rc2 $1 $17 {[%cal Oc2c3] White must now prevent ...Rc3!} 28. Bxf8 (28. Ng3 Re8) 28... dxe4) 28. Ng7 $1 $11 {[%emt 0:00:30]} Rf8 {[%emt 0:01:37]} ({Better is} 28... dxe4 $11 29. dxe4 Rf8) 29. Nf5 $1 $17 {[%emt 0:00:16]} Re8 {[%emt 0:07:16]} ({But not} 29... gxf5 30. gxf5 Kh8 31. Bxf8 dxe4 32. dxe4 $16) 30. Ng7 $1 {[%emt 0:00:10] Weighted Error Value: White=0.38/Black=0.54} 1/2-1/2

[Event "121st Swiss Championship 2022"]
[Site "Samnaun-Compatsch"]
[Date "2022.07.06"]
[Round "3.2"]
[White "Wyss, Jonas"]
[Black "Gschnitzer, Adrian"]
[Result "1/2-1/2"]
[ECO "B06"]
[WhiteElo "2223"]
[BlackElo "2433"]
[Annotator "TA"]
[PlyCount "40"]
[EventDate "2022.06.28"]
[EventType "swiss"]
[EventCountry "SUI"]
[SourceTitle "playchess.com"]
[Source "ChessBase"]
[SourceQuality "1"]
[TimeControl "40/5400+30:1800+30"]

{[%evp 11,40,27,1,15,23,15,9,23,35,26,5,1,31,31,35,22,28,30,28,14,20,9,10,6,16,7,68,52,124,110,124]} 1. e4 {[%emt 0:00:03]} c5 {[%emt 0:00:16]} 2. Nf3 {[%emt 0:00:07]} g6 {[%emt 0:00:15]} 3. c3 {[%emt 0:01:35]} d5 {[%emt 0:00:08]} 4. exd5 {[%emt 0:00:15]} Qxd5 {[%emt 0:00:08]} 5. d4 {[%emt 0:00:16]} Bg7 {[%emt 0:00:09]} 6. Na3 {[%emt 0:01:05][%cal Bb1a3,Ba3b5,Bb5d4][%mdl 32]} cxd4 {[%emt 0:00:36]} 7. Nb5 {[%emt 0:06:19] B06: Modern Defence.} (7. Bc4 $5 {[%cal Rc4d5]} Qe4+ {[#]} 8. Be3 $1 $14) 7... Na6 {[%emt 0:02:14] Prevents Nc7+.} 8. Nbxd4 {[%emt 0:03:02] Active counter play!} Nf6 {[%emt 0:07:52]} 9. Bb5+ {[%emt 0:09:47] The position is equal.} Bd7 {[%emt 0:00:42]} 10. Qe2 {[%emt 0:01:25]} O-O {[%emt 0:04:35]} 11. O-O {[%emt 0:01:40]} Nc5 {[%emt 0:05:09]} 12. Bc4 {[%emt 0:09:22][%cal Bb5c4,Bc4b3,Bb3c2][%mdl 32]} Qd6 {[%emt 0:07:47] [#]} 13. Ne5 $146 {[%emt 0:08:29]} ({Predecessor:} 13. Rd1 Qc7 14. Ne5 Ba4 15. Re1 e6 16. b3 Be8 17. f4 Nfd7 18. a4 Rc8 19. Ba3 Nxe5 20. fxe5 {½-½ (38) Hausdorf,H (2287)-Le Page,C (2351) ICCF email 2011}) 13... a6 {[%emt 0:06:11]} 14. Rd1 {[%emt 0:11:19] [#] aiming for Nb3.} Qc7 $1 {[%emt 0:02:33]} 15. Nxd7 {[%emt 0:09:09]} Ncxd7 {[%emt 0:00:56]} 16. Bb3 {[%emt 0:02:05]} Nc5 {[%emt 0:03:14]} 17. Bc2 {[%emt 0:00:46]} e5 {[%emt 0:02:23]} 18. Nf3 {[%emt 0:01:22]} Nfd7 {[%emt 0:00:43]} ({Better is} 18... e4 $11 19. Nd4 Rfe8) 19. Be3 $14 {[%emt 0:02:17]} Kh8 {[%emt 0:07:26]} (19... Nf6 $14) 20. Qc4 $16 {[%emt 0:05:08] And now Ng5 would win.} Rac8 {[%emt 0:15:09] Weighted Error Value: White=0.04 (flawless) /Black=0.15 (very precise)} 1/2-1/2

[Event "121st Swiss Championship 2022"]
[Site "Samnaun-Compatsch"]
[Date "2022.07.06"]
[Round "3.3"]
[White "Gaehwiler, Gabriel"]
[Black "Schlegel, Igor"]
[Result "1-0"]
[ECO "B91"]
[WhiteElo "2420"]
[BlackElo "2194"]
[Annotator "TA"]
[PlyCount "53"]
[EventDate "2022.06.28"]
[EventType "swiss"]
[EventCountry "SUI"]
[SourceTitle "playchess.com"]
[Source "ChessBase"]
[SourceQuality "1"]
[TimeControl "40/5400+30:1800+30"]

{[%evp 13,53,8,18,21,37,43,40,42,70,79,83,71,69,70,126,147,210,219,381,368,389,396,536,450,541,585,583,568,552,558,555,553,556,441,425,423,518,512,504,470,1171,953]} 1. e4 {[%emt 0:00:42]} c5 {[%emt 0:00:04]} 2. Nf3 {[%emt 0:00:11]} d6 {[%emt 0:00:05]} 3. d4 {[%emt 0:00:27]} cxd4 {[%emt 0:00:04]} 4. Nxd4 {[%emt 0:00:08][%cal Bf3d4,Bd4e2,Be2c3,Bc3d5][%mdl 32]} Nf6 {[%emt 0:00:05]} 5. Nc3 {[%emt 0:00:13]} a6 {[%emt 0:00:05]} 6. g3 {[%emt 0:00:44]} e5 {[%emt 0:00:47]} 7. Nde2 {[%emt 0:00:09]} Nbd7 {[%emt 0:01:04]} 8. a4 {[%emt 0:13:25] B91: Sicilian Najdorf: 6 g3.} b6 {[%emt 0:04:24]} 9. Nd5 {[%emt 0:07:24]} Nxd5 {[%emt 0:42:23]} 10. Qxd5 {[%emt 0:05:52] [#] White is slightly better.} Ra7 $146 {[%emt 0:01:23]} ({Predecessor:} 10... Rb8 11. Nc3 Bb7 12. Qa2 Be7 13. Bc4 O-O 14. O-O Nf6 15. f3 b5 16. Bb3 b4 17. Nd5 Nxd5 18. Bxd5 Qb6+ 19. Rf2 Bxd5 20. Qxd5 Rfc8 21. Kg2 Qc6 22. Qb3 Rd8 {½-½ (22) Saric,I (2560)-Brkic,A (2606) Bol 2011}) 11. Nc3 {[%emt 0:04:51]} Rc7 {[%emt 0:03:29]} 12. Be3 {[%emt 0:09:49]} Bb7 {[%emt 0:16:51]} 13. Qb3 {[%emt 0:16:21] White is much more active.} Nc5 {[%emt 0:06:28]} ({Black should play} 13... Be7 $14) 14. Qxb6 $16 {[%emt 0:16:11] Strongly threatening Bxc5.} Nxe4 {[%emt 0:00:06]} (14... Nd7 $16 {was necessary.} 15. Qa5 Qc8) 15. Bxa6 $18 {[%emt 0:00:44]} Bxa6 {[%emt 0:00:46] [#]} (15... Ba8) 16. Nd5 {[%emt 0:00:55]} ({Less strong is} 16. Qxa6 Nxc3 17. bxc3 Be7 $16) (16. Nxe4 Qc8 17. Rc1 (17. Nxd6+ Bxd6 18. Qxd6 Rxc2 $17) 17... d5 18. Nd6+ Bxd6 19. Qxd6 f6 $17) 16... Rxc2 {[%emt 0:09:37]} 17. Qxa6 {[%emt 0:01:01]} Rxb2 {[%emt 0:05:22]} 18. O-O {[%emt 0:11:25] White is clearly winning.} ({Weaker is} 18. Qc6+ Qd7 19. Qa8+ Qd8 $16) 18... Nc5 {[%emt 0:05:09]} 19. Bxc5 {[%emt 0:01:21]} dxc5 {[%emt 0:00:03]} 20. Rfd1 {[%emt 0:01:17] Threatening mate with Qc6+.} Bd6 {[%emt 0:00:05]} 21. Qc6+ {[%emt 0:03:49]} Qd7 {[%emt 0:00:21] [#]} 22. Nc7+ $1 {[%emt 0:00:10][%mdl 576] Pin} Ke7 {[%emt 0:00:05]} 23. Qxd7+ {[%emt 0:00:07]} Kxd7 {[%emt 0:00:07]} 24. Nb5 {[%emt 0:00:01]} Rxb5 {[%emt 0:00:12]} 25. axb5 {[%emt 0:00:02] Threatens to win with Ra6.} Rd8 {[%emt 0:02:14]} 26. Ra6 {[%emt 0:01:43]} Kc7 {[%emt 0:00:27]} (26... Ke7 $142 27. Rc6 Bb8 28. Rxd8 Kxd8) 27. Rc6+ {[%emt 0:00:04] Black got outplayed after the opening.  Weighted Error Value: White=0.13 (very precise) /Black=0.39} 1-0

[Event "121st Swiss Championship 2022"]
[Site "Samnaun-Compatsch"]
[Date "2022.07.06"]
[Round "3.4"]
[White "Sedina, Yelena"]
[Black "Georgescu, Lena"]
[Result "1/2-1/2"]
[ECO "C54"]
[WhiteElo "2215"]
[BlackElo "2279"]
[Annotator "TA"]
[PlyCount "71"]
[EventDate "2022.06.28"]
[EventType "swiss"]
[EventCountry "SUI"]
[SourceTitle "playchess.com"]
[Source "ChessBase"]
[SourceQuality "1"]
[TimeControl "40/5400+30:1800+30"]

{[%evp 11,71,0,0,0,0,0,0,0,0,0,0,0,0,0,8,0,0,11,11,3,11,2,10,0,0,0,33,0,23,37,38,0,0,0,0,-11,0,0,0,0,0,0,15,0,0,0,0,0,0,0,0,0,0,0,0,0,0,0,0,0,0,0]} 1. e4 {[%emt 0:02:04]} e5 {[%emt 0:00:50]} 2. Nf3 {[%emt 0:00:14]} Nc6 {[%emt 0:00:04]} 3. Bc4 {[%emt 0:00:22]} Bc5 {[%emt 0:00:06]} 4. c3 {[%emt 0:00:30]} Nf6 {[%emt 0:00:15]} 5. d4 {[%emt 0:00:27]} exd4 {[%emt 0:00:05]} 6. e5 {[%emt 0:00:35]} d5 $1 {[%emt 0:00:05]} 7. Be2 {[%emt 0:00:26] C54: Giuoco Piano: 4 c3 Nf6, main lines with 5 d4 and 5 d3.} ({Much worse is} 7. exf6 dxc4 8. O-O (8. fxg7 Rg8 $15) 8... Qxf6 9. Re1+ Be6 $17) 7... Ne4 {[%emt 0:00:08][%cal Od4d3] [#] aiming for ...d3!} 8. cxd4 {[%emt 0:00:08]} Bb6 {[%emt 0:00:05] The main line 8...Bb6 scores better than 8...Bb4+.} 9. Nc3 {[%emt 0:04:13]} O-O {[%emt 0:01:53]} 10. O-O {[%emt 0:03:10]} Be6 {[%emt 0:01:23]} 11. Be3 {[%emt 0:06:05]} f6 {[%emt 0:02:58]} 12. exf6 {[%emt 0:19:43]} Qxf6 {[%emt 0:02:56]} 13. Bb5 {[%emt 0:23:40]} Nxc3 {[%emt 0:11:28]} 14. bxc3 {[%emt 0:00:04]} Bg4 {[%emt 0:01:01][%cal Rg4f3]} 15. Be2 $1 {[%emt 0:00:31]} Rae8 {[%emt 0:03:36]} 16. h3 {[%emt 0:05:16]} Bh5 {[%emt 0:02:19] [#]} 17. Re1 $146 {[%emt 0:06:32]} ({Predecessor:} 17. a4 a6 18. Rb1 Qd6 19. Nd2 Bg6 20. Rb2 Na5 21. Bh5 Re6 22. Bg4 Re7 23. Bg5 Ree8 24. Bh4 {0-1 (65) Asadli,V (2579)-Piorun,K (2640) Warsaw 2021}) 17... Qd6 {[%emt 0:06:05]} 18. Rb1 {[%emt 0:04:44]} Kh8 {[%emt 0:12:58]} 19. Qc2 {[%emt 0:02:26]} Bxf3 {[%emt 0:03:32]} (19... Rxe3 $5 20. fxe3 Bg6 $11) 20. Bxf3 {[%emt 0:00:01]} Na5 {[%emt 0:03:59]} 21. Be2 {[%emt 0:02:03]} (21. Bh5 $5 {[%cal Rh5e8]} Re6 22. Bg4 $14) 21... c6 {[%emt 0:04:05] [#] Threatens to win with ...Bc7. The position is equal.} 22. Bd3 {[%emt 0:00:43]} ({Much weaker is} 22. Bh5 g6 23. Bg4 h5 $17) 22... Nc4 {[%emt 0:04:31]} 23. Qc1 {[%emt 0:11:23]} Bc7 {[%emt 0:06:33]} 24. g3 {[%emt 0:00:02]} b5 {[%emt 0:06:07]} 25. Bf4 {[%emt 0:01:20]} Qd7 {[%emt 0:02:30] Strongly threatening ...Rxe1+.} 26. Bxc7 {[%emt 0:03:09]} Qxc7 {[%emt 0:00:10]} 27. Bxc4 {[%emt 0:01:49]} dxc4 {[%emt 0:00:47]} 28. Rb2 {[%emt 0:00:28]} Qd7 {[%emt 0:02:12]} 29. h4 {[%emt 0:00:13]} Rxe1+ {[%emt 0:06:04]} 30. Qxe1 $11 {[%emt 0:00:02][%mdl 4096] Endgame KQR-KQR} Re8 {[%emt 0:01:04]} 31. Re2 {[%emt 0:01:03]} Rxe2 {[%emt 0:00:08]} 32. Qxe2 {[%emt 0:00:01]} Kg8 {[%emt 0:00:34]} 33. Qe5 {[%emt 0:00:36]} Kf7 {[%emt 0:02:14]} 34. Qh5+ {[%emt 0:00:07]} Kg8 {[%emt 0:00:19]} 35. Qe5 {[%emt 0:00:04]} Kf7 {[%emt 0:01:48]} 36. Qh5+ {[%emt 0:00:04] Weighted Error Value: White=0.05 (flawless) /Black=0.03 (flawless)} 1/2-1/2